Department Family,Date Paid,Expense Type,Expense Area,Supplier,Transaction Number,Amount,Vat Inclusive
Crown Prosecution Service ,02/09/2020,Advice/PreSending Very High Cost Cases Full Scheme,SFD North,Red Lion Chambers (18 RLC),154212\SC\S16,"25,641.20",Y
Crown Prosecution Service ,02/09/2020,Landlord service charge,Estate and FM: Administration,Government Property Agency London,3315,"17,698.37",
Crown Prosecution Service ,02/09/2020,Operating lease rentals Property,Estate and FM: Administration,Government Property Agency London,3315,"36,242.47",
Crown Prosecution Service ,02/09/2020,Landlord service charge,Estate and FM: Programme,Government Property Agency London,3315,"17,698.38",
Crown Prosecution Service ,02/09/2020,Operating lease rentals Property,Estate and FM: Programme,Government Property Agency London,3315,"36,242.48",
Crown Prosecution Service ,02/09/2020,National non domestic rates,Estate and FM: Programme,Government Property Agency London,3315,"8,791.25",
Crown Prosecution Service ,02/09/2020,National non domestic rates,Estate and FM: Administration,Government Property Agency London,3315,"8,791.25",
Crown Prosecution Service ,02/09/2020,National Insurance payable,Balance Sheet,HM Revenue and Customs,948PB000021422105,"3,813,056.63",
Crown Prosecution Service ,02/09/2020,Apprenticeship Levy payments Permanent,Other Corporate Admin Payments,HM Revenue and Customs,948PB000021422105,"6,145.56",
Crown Prosecution Service ,02/09/2020,Apprenticeship Levy payments Permanent,Other Corporate Programme Payments,HM Revenue and Customs,948PB000021422105,"96,280.44",
Crown Prosecution Service ,02/09/2020,PAYE payable,Balance Sheet,HM Revenue and Customs,948PB000021422105,"3,015,949.96",
Crown Prosecution Service ,02/09/2020,Recoverable VAT control,Balance Sheet,CGI IT UK Ltd,GB014043804,"25,678.20",Y
Crown Prosecution Service ,02/09/2020,IT services,DTS Programme Project Cost,CGI IT UK Ltd,GB014043804,"128,391.00",
Crown Prosecution Service ,02/09/2020,Recoverable VAT control,Balance Sheet,CGI IT UK Ltd,GB014043808,"82,751.94",Y
Crown Prosecution Service ,02/09/2020,IT services,DTS Programme Project Cost,CGI IT UK Ltd,GB014043808,"413,759.69",
Crown Prosecution Service ,07/09/2020,IT services,DTS Programme Project Cost,Her Majestys Courts Tribunals Service,2533335,"44,880.00",Y
Crown Prosecution Service ,07/09/2020,Landlord service charge,Estate and FM: Programme,IPT Property Holdings Limited Dorking,317991,"31,003.62",Y
Crown Prosecution Service ,07/09/2020,Operating lease rentals Property,Estate and FM: Programme,Government Property Agency London,3296,"35,100.00",
Crown Prosecution Service ,07/09/2020,Landlord service charge,Estate and FM: Programme,Government Property Agency London,3296,"14,155.27",
Crown Prosecution Service ,07/09/2020,National non domestic rates,Estate and FM: Programme,Government Property Agency London,3296,"15,399.00",
Crown Prosecution Service ,07/09/2020,Crown Court Graduated Fee Scheme,Mersey Cheshire Crown Court Unit,Exchange Chambers - Liverpool & Leeds,538710 - GC,"28,795.42",Y
Crown Prosecution Service ,07/09/2020,Crown Court Graduated Fee Scheme,London North Complex Casework Unit,5 King's Bench Walk,AOQC 169452,"31,635.44",Y
Crown Prosecution Service ,07/09/2020,Crown Court Graduated Fee Scheme,London North Complex Casework Unit,9 Gough Chambers London,TL369960,"44,807.27",Y
Crown Prosecution Service ,08/09/2020,IT non capital software licences,Legal Reference and ICT Licenses,ICS.AI Ltd Basingstoke,INV-133,"33,896.40",Y
Crown Prosecution Service ,08/09/2020,IT Professional Services Design & Development Hardware & Software: Non Capital Purchases,DTS Programme Project Cost,Equal Experts London,INV-7659,"86,538.00",Y
Crown Prosecution Service ,08/09/2020,PPE asset purchase clearing Furniture and fittings,Estate and FM: Programme,Apleona Workspace Solutions Ltd Motherwell,SI2008535,"57,667.93",Y
Crown Prosecution Service ,09/09/2020,Recoverable VAT control,Balance Sheet,CGI IT UK Ltd,GB014043116,"17,105.42",Y
Crown Prosecution Service ,09/09/2020,IT services,DTS Programme Project Cost,CGI IT UK Ltd,GB014043116,"85,527.08",
Crown Prosecution Service ,09/09/2020,Crown Court Graduated Fee Scheme,West Midlands British Transport Police,2 Hare Court Chambers -Chambers of Orlando Pownall,JR114299,"35,582.84",Y
Crown Prosecution Service ,09/09/2020,IT services,IT Compass Contract,Vodafone Ltd formerly Cable and Wireless Milton Keynes,UK10/092020/8171,"33,816.89",Y
Crown Prosecution Service ,11/09/2020,Crown Court Graduated Fee Scheme,London North Complex Casework Unit,6 Kings Bench Walk- Chambers of D Fisher & D Perry,98051-DP-YOUNIS4,"25,083.86",Y
Crown Prosecution Service ,11/09/2020,Crown Court Graduated Fee Scheme,West Midlands Complex Casework Unit,6 Kings Bench Walk- Chambers of D Fisher & D Perry,AMG-FANA - 98763,"30,004.98",Y
Crown Prosecution Service ,11/09/2020,IT Professional Services Design & Development Hardware & Software: Non Capital Purchases,DTS Programme Project Cost,eSynergy Solutions Ltd,CPS0071,"65,940.00",Y
Crown Prosecution Service ,11/09/2020,IT Professional Services Design & Development Hardware & Software: Non Capital Purchases,DTS Programme Project Cost,eSynergy Solutions Ltd,CPS0083,"53,235.00",Y
Crown Prosecution Service ,14/09/2020,Recoverable VAT control,Balance Sheet,Mendip Media Group Ltd Tiverton,160,"6,676.20",Y
Crown Prosecution Service ,14/09/2020,Transcriptions and Translation,Other Corporate Programme Payments,Mendip Media Group Ltd Tiverton,160,"33,381.00",
Crown Prosecution Service ,14/09/2020,Recoverable VAT control,Balance Sheet,Century Link,150177279/1013287,"31,230.69",Y
Crown Prosecution Service ,14/09/2020,IT services,PSN Connectivity Contract,Century Link,150177279/1013287,"156,153.46",
Crown Prosecution Service ,14/09/2020,Recoverable VAT control,Balance Sheet,Century Link,150186302/1011586,"31,697.96",Y
Crown Prosecution Service ,14/09/2020,IT services,PSN Services Contract,Century Link,150186302/1011586,"158,489.82",
Crown Prosecution Service ,14/09/2020,Recoverable VAT control,Balance Sheet,WIPRO Holdings London,83028164,"21,742.70",Y
Crown Prosecution Service ,14/09/2020,IT services,End User Computing Contract,WIPRO Holdings London,83028164,"108,713.50",
Crown Prosecution Service ,14/09/2020,Recoverable VAT control,Balance Sheet,Xerox (UK) Ltd,900201798,"15,474.37",Y
Crown Prosecution Service ,14/09/2020,IT services,DTS Programme Project Cost,Xerox (UK) Ltd,900201798,"2,250.00",
Crown Prosecution Service ,14/09/2020,Printing Costs,Print Contract,Xerox (UK) Ltd,900201798,"45,297.22",
Crown Prosecution Service ,14/09/2020,Operating lease rentals � IT and Equipment,Print Contract,Xerox (UK) Ltd,900201798,"29,824.59",
Crown Prosecution Service ,14/09/2020,Recoverable VAT control,Balance Sheet,Xerox (UK) Ltd,900202675,"16,835.70",Y
Crown Prosecution Service ,14/09/2020,Printing Costs,Print Contract,Xerox (UK) Ltd,900202675,"54,353.40",
Crown Prosecution Service ,14/09/2020,Operating lease rentals � IT and Equipment,Print Contract,Xerox (UK) Ltd,900202675,"29,825.00",
Crown Prosecution Service ,14/09/2020,Recoverable VAT control,Balance Sheet,CGI IT UK Ltd,GB014044517,"13,629.04",Y
Crown Prosecution Service ,14/09/2020,IT services,Apps and Hosting Contract,CGI IT UK Ltd,GB014044517,"68,145.20",
Crown Prosecution Service ,14/09/2020,IT services,Apps and Hosting Contract,CGI IT UK Ltd,GB014044616,"564,054.52",
Crown Prosecution Service ,14/09/2020,Recoverable VAT control,Balance Sheet,CGI IT UK Ltd,GB014044616,"112,810.90",Y
Crown Prosecution Service ,16/09/2020,Crown Court Graduated Fee Scheme,East of England Crown Court,Red Lion Chambers (18 RLC),158109CPXtrial,"25,903.80",Y
Crown Prosecution Service ,16/09/2020,Recoverable VAT control,Balance Sheet,AVR Transcription Ltd Bolton,34571-AUG20,"7,963.16",Y
Crown Prosecution Service ,16/09/2020,Transcriptions and Translation,Other Corporate Programme Payments,AVR Transcription Ltd Bolton,34571-AUG20,"39,815.81",
Crown Prosecution Service ,17/09/2020,Telephony mobile phones and dongles,International External Funding,Foreign And Commonwealth Office,1126904,11.06,
Crown Prosecution Service ,17/09/2020,Salaries Overseas locally employed Admin,International External Funding,Foreign And Commonwealth Office,1126904,"1,382.68",
Crown Prosecution Service ,17/09/2020,Salaries Overseas locally employed Admin,International External Funding,Foreign And Commonwealth Office,1126904,"16,788.14",
Crown Prosecution Service ,17/09/2020,Salaries Overseas locally employed Admin,International Liaison Magistrates,Foreign And Commonwealth Office,1126904,"4,325.92",
Crown Prosecution Service ,17/09/2020,Telephony mobile phones and dongles,International External Funding,Foreign And Commonwealth Office,1126904,"2,711.55",
Crown Prosecution Service ,17/09/2020,Telephony mobile phones and dongles,International Liaison Magistrates,Foreign And Commonwealth Office,1126904,9.65,
Crown Prosecution Service ,17/09/2020,IT Professional Services Design & Development Hardware & Software: Non Capital Purchases,DTS Programme Project Cost,Equal Experts London,INV-7596,"109,839.00",Y
Crown Prosecution Service ,21/09/2020,Crown Court Graduated Fee Scheme,London North Complex Casework Unit,5 King's Bench Walk,156171 MHQC  5,"83,219.81",Y
Crown Prosecution Service ,21/09/2020,IT non capital software licences,Legal Reference and ICT Licenses,Trustmarque Solutions Ltd,2305817,"46,142.95",
Crown Prosecution Service ,21/09/2020,Recoverable VAT control,Balance Sheet,Trustmarque Solutions Ltd,2305817,"9,228.59",Y
Crown Prosecution Service ,21/09/2020,IT services,DTS Programme Project Cost,Accenture (UK) Ltd London,3003477882,"34,800.00",Y
Crown Prosecution Service ,21/09/2020,Crown Court Graduated Fee Scheme,Counter Terrorism Unit: Internal Funding,QEB Hollis Whiteman Chambers,AWH 106667,"37,261.14",Y
Crown Prosecution Service ,21/09/2020,Salary sacrifice suspense,Balance Sheet,Edenred,INV22501098,"36,119.76",
Crown Prosecution Service ,21/09/2020,Other Staff Costs,Finance Operations,Edenred,INV22501098,"6,849.88",
Crown Prosecution Service ,22/09/2020,Landlord service charge,Estate and FM: Programme,Government Property Agency London,0000001/3291,355.68,
Crown Prosecution Service ,22/09/2020,Operating lease rentals Property,Estate and FM: Programme,Government Property Agency London,0000001/3291,"156,900.00",
Crown Prosecution Service ,22/09/2020,National non domestic rates,Estate and FM: Programme,Government Property Agency London,0000001/3291,"63,582.04",
Crown Prosecution Service ,22/09/2020,Recoverable VAT control,Balance Sheet,KPMG LLP London,5502145559,"5,807.00",Y
Crown Prosecution Service ,22/09/2020,External Training,Leadership and Management Development,KPMG LLP London,5502145559,"29,035.00",
Crown Prosecution Service ,23/09/2020,Landlord service charge,Estate and FM: Programme,Government Property Agency London,00000001/3312,"10,534.26",
Crown Prosecution Service ,23/09/2020,National non domestic rates,Estate and FM: Programme,Government Property Agency London,00000001/3312,"7,104.00",
Crown Prosecution Service ,23/09/2020,Operating lease rentals Property,Estate and FM: Programme,Government Property Agency London,00000001/3312,"15,605.26",
Crown Prosecution Service ,23/09/2020,IT services,PSN Services Contract,Century Link,150736081/1013973,"25,434.33",Y
Crown Prosecution Service ,23/09/2020,IT services,PSN Services Contract,Century Link,150736172/1013983,"37,282.41",Y
Crown Prosecution Service ,23/09/2020,Crown Court Graduated Fee Scheme,London North Complex Casework Unit,Furnival Chambers,160361 JDS Ezeoke,"39,153.67",Y
Crown Prosecution Service ,23/09/2020,Operating lease rentals Property,Estate and FM: Administration,Her Majestys Courts Tribunals Service,2533536,"41,799.80",
Crown Prosecution Service ,23/09/2020,IT services,DTS Programme Project Cost,WIPRO Holdings London,83028930,"34,902.00",Y
Crown Prosecution Service ,23/09/2020,IT services,DTS Programme Project Cost,WIPRO Holdings London,83028931,"72,029.04",Y
Crown Prosecution Service ,23/09/2020,IT services,DTS Programme Project Cost,WIPRO Holdings London,83028932,"34,171.20",Y
Crown Prosecution Service ,23/09/2020,IT services,DTS Programme Project Cost,WIPRO Holdings London,83028933,"28,596.00",Y
Crown Prosecution Service ,23/09/2020,IT services,DTS Programme Project Cost,WIPRO Holdings London,83029078,"70,449.60",Y
Crown Prosecution Service ,23/09/2020,Recoverable VAT control,Balance Sheet,Microsoft Ltd Reading,9899167880,"10,621.80",Y
Crown Prosecution Service ,23/09/2020,IT non capital software licences,Legal Reference and ICT Licenses,Microsoft Ltd Reading,9899167880,"53,109.00",
Crown Prosecution Service ,23/09/2020,IT services,DTS Programme Project Cost,CGI IT UK Ltd,GB014044561,"27,369.65",Y
Crown Prosecution Service ,23/09/2020,IT services,DTS Programme Project Cost,CGI IT UK Ltd,GB014044712,"36,276.03",
Crown Prosecution Service ,23/09/2020,Recoverable VAT control,Balance Sheet,CGI IT UK Ltd,GB014044712,"7,255.21",Y
Crown Prosecution Service ,23/09/2020,IT services,DTS Programme Project Cost,CGI IT UK Ltd,GB014044719,"29,078.50",Y
Crown Prosecution Service ,23/09/2020,IT services,DTS Programme Project Cost,CGI IT UK Ltd,GB014044723,"70,783.85",Y
Crown Prosecution Service ,23/09/2020,IT services,DTS Programme Project Cost,CGI IT UK Ltd,GB014044900,"74,818.72",Y
Crown Prosecution Service ,23/09/2020,IT services,DTS Programme Project Cost,CGI IT UK Ltd,GB014044994,"26,119.92",Y
Crown Prosecution Service ,23/09/2020,IT services,DTS Programme Project Cost,CGI IT UK Ltd,GB014044995,"25,640.48",Y
Crown Prosecution Service ,24/09/2020,Crown Court Graduated Fee Scheme,Yorks and Humbs CC Legal,New Park Court Chambers Leeds,355640-2/JPQC,"29,930.47",Y
Crown Prosecution Service ,24/09/2020,Crown Court Graduated Fee Scheme,London North Complex Casework Unit,QEB Hollis Whiteman Chambers,CA 107209 2,"34,753.32",Y
Crown Prosecution Service ,25/09/2020,National non domestic rates,Estate and FM: Programme,Government Property Agency London,00000001/3323,"39,690.00",
Crown Prosecution Service ,25/09/2020,Landlord service charge,Estate and FM: Programme,Government Property Agency London,00000001/3323,"58,841.94",
Crown Prosecution Service ,25/09/2020,Operating lease rentals Property,Estate and FM: Programme,Government Property Agency London,00000001/3323,"106,451.25",
Crown Prosecution Service ,25/09/2020,External legal advice - Civil litigation,Other Corporate Programme Payments,Government Legal Department,482956,"40,619.65",Y
Crown Prosecution Service ,25/09/2020,External legal advice - Civil litigation,Other Corporate Programme Payments,Government Legal Department,484072,"38,015.92",Y
Crown Prosecution Service ,28/09/2020,IT services,DTS Programme Project Cost,WIPRO Holdings London,83025614,"50,843.69",Y
Crown Prosecution Service ,28/09/2020,IT services,DTS Programme Project Cost,WIPRO Holdings London,83025615,"69,915.54",Y
Crown Prosecution Service ,29/09/2020,Recoverable VAT control,Balance Sheet,CGI IT UK Ltd,GB014044221,"16,376.29",Y
Crown Prosecution Service ,29/09/2020,IT services,Service Desk Contract,CGI IT UK Ltd,GB014044221,"81,881.47",
Crown Prosecution Service ,30/09/2020,Crown Court Graduated Fee Scheme,South West Crown Court: South,Devon Chambers,51612/Smythe/JM1,"27,526.51",Y
